bitfinex/quotes_ETHUSD_20240709
["timestamp","ask_amount","ask_price","bid_price","bid_amount"]
[1720513959328,1.58701545,3092.1,3090.6,3.23559]
[1720513959632,0.74099334,3092.1,3090.4,3.23574]
[1720513959778,0.80040155,3092.0,3090.5,0.55]
[1720513960009,0.80040155,3092.0,3090.3,0.06469295]
[1720513960256,5.7467,3091.7,3090.1,3.30074586]
[1720513960535,5.7467,3091.7,3090.0,5.47721]
[1720513960536,3.0,3091.6,3090.0,5.47721]
[1720513960737,3.0,3091.6,3089.9,0.06470243]
[1720513960924,6.417,3091.6,3089.7,0.06470244]
[1720513961136,6.23867,3091.5,3089.6,3.30126746]
[1720513961363,6.23867,3091.5,3089.8,3.23644]
[1720513961364,7.340867,3091.4,3089.8,3.23644]
[1720513961525,7.340867,3091.4,3089.9,0.06470849]
[1720513963161,7.340867,3091.4,3090.0,0.06470852]
[1720513963472,0.3388293,3091.3,3090.0,0.06470852]
[1720513963766,3.85256593,3091.3,3090.1,0.55]
[1720513963943,0.3388293,3091.3,3089.9,3.23632]
[1720513964957,0.3388293,3091.3,3090.3,3.23586]
[1720513965161,0.3388293,3091.3,3090.4,0.06469767]
[1720513965750,0.3388293,3091.3,3090.5,3.78565]
[1720513966051,9.6897,3091.7,3090.6,0.06469333]
[1720513966267,0.33877844,3091.6,3090.6,0.06469333]
[1720513966479,0.33877844,3091.6,3091.2,3.23494]
[1720513966618,0.33877844,3091.6,3091.4,3.2347]
[1720513966965,7.36,3092.2,3091.7,3.23446]
[1720513967123,7.36,3092.2,3091.8,0.06467409]
[1720513967320,7.36,3092.2,3091.1,0.06467409]
[1720513967522,7.36,3092.2,3091.0,3.29986302]
[1720513967866,7.36,3092.2,3091.0,0.06468302]
[1720513968020,7.36,3092.2,3091.6,3.2345]
[1720513968221,7.36,3092.2,3091.7,0.55]
[1720513968777,7.36,3092.2,3091.8,0.06467413]
[1720513969264,7.36,3092.2,3090.6,5.7157]
[1720513969556,7.36,3092.2,3090.9,0.61467866]
[1720513969725,7.36,3092.2,3091.2,3.23492]
[1720513970124,7.36,3092.2,3091.3,3.23488]
[1720513970667,0.84593423,3092.4,3091.3,3.23488]
[1720513970859,0.84593423,3092.4,3091.1,3.29969868]
[1720513971031,0.84593423,3092.4,3091.2,3.78498]
[1720513971366,5.8305,3092.3,3089.9,13.12038]
[1720513971579,5.8305,3092.3,3090.7,3.23544]
[1720513971874,5.8305,3092.3,3091.0,3.23519]
[1720513971875,3.0,3092.2,3091.0,3.23519]
[1720513972021,0.84593423,3092.4,3091.4,3.23477]
[1720513972223,0.84593423,3092.4,3091.5,0.06467848]
[1720513972461,2.00039907,3092.4,3091.3,3.2995385]
[1720513972679,0.84593423,3092.4,3091.3,3.2995385]
[1720513972826,0.84593423,3092.4,3091.6,3.23455]
[1720513973144,0.84593423,3092.4,3091.6,3.29922383]
[1720513973340,0.84593423,3092.4,3091.7,3.23444]
[1720513973556,0.84593423,3092.4,3091.8,0.06467384]
[1720513973758,0.84593423,3092.4,3091.5,3.23459]
[1720513974058,0.84593423,3092.4,3091.6,3.23456]
[1720513974274,0.84593423,3092.4,3091.4,0.06467381]
[1720513974569,1.70039907,3092.4,3091.1,3.23501]
[1720513974769,2.4679,3092.3,3090.9,3.23526]
[1720513974988,0.41682991,3092.2,3090.5,3.3003459]
[1720513975185,3.41682991,3092.2,3090.7,6.47084]
[1720513975473,3.41682991,3092.2,3090.7,3.23541]
[1720513975675,0.93017299,3092.1,3090.7,6.47086]
[1720513975997,0.84593423,3092.4,3091.7,3.23437]
[1720513976135,0.84593423,3092.4,3092.0,3.23414]
[1720513976341,0.84593423,3092.4,3092.1,0.06466941]
[1720513976686,2.3317,3092.9,3092.1,0.06466941]
[1720513976687,0.33866322,3092.9,3092.3,3.23383]
[1720513976890,0.33866322,3092.9,3092.6,3.23351]
[1720513977040,2.3708,3093.6,3092.7,0.0646553]
[1720513977234,2.3708,3093.6,3092.7,3.23335]
[1720513977467,2.3708,3093.6,3092.3,3.23377]
[1720513977984,2.3708,3093.6,3092.4,0.06465864]
[1720513978272,0.33862512,3093.5,3092.1,3.29865864]
[1720513978430,0.33862512,3093.5,3092.2,0.55]
[1720513978631,3.33862512,3093.5,3092.2,0.55]
[1720513978830,0.59465051,3093.4,3092.2,3.78393]
[1720513979234,5.364,3093.3,3091.5,3.23464]
[1720513979579,5.364,3093.1,3091.4,3.23476]
[1720513979938,1.947,3092.9,3091.4,3.23476]
[1720513980138,4.947,3092.9,3091.4,3.23476]
[1720513980367,8.364,3092.9,3090.9,5.69596]
[1720513980532,1.947,3092.7,3091.0,0.06467606]
[1720513980858,4.4321,3092.6,3091.0,0.06467606]
[1720513981064,7.8491,3092.6,3090.8,3.2354]
[1720513981338,4.08491,3092.5,3090.9,0.06468782]
[1720513981733,4.08491,3092.5,3091.3,3.23485]
[1720513982063,7.36,3093.0,3091.9,3.23424]
[1720513982377,1.947,3093.2,3092.0,0.06466729]
[1720513982870,1.947,3093.2,3091.3,3.23484]
[1720513983056,5.364,3092.8,3091.1,3.235]
[1720513983264,1.947,3092.6,3091.2,3.23498]
[1720513983884,1.947,3092.6,3091.0,5.76907097]
[1720513984069,0.4947,3092.5,3091.0,5.76907097]
[1720513984255,2.4611,3092.4,3091.0,3.29987097]
[1720513984579,2.4611,3092.4,3090.8,0.06468098]
[1720513984580,7.4081,3092.4,3090.8,0.06468098]
[1720513984874,2.24258,3092.3,3090.8,3.23531]
[1720513985090,2.24258,3092.3,3090.9,3.23529]
[1720513985736,0.29558,3092.3,3091.0,0.06468613]
[1720513985935,0.29558,3092.3,3091.1,3.23499]
[1720513986141,0.29558,3092.3,3091.2,0.06468032]
[1720513986373,0.29558,3092.3,3091.1,0.55]
[1720513986374,0.575668,3092.2,3091.1,3.84977032]
[1720513986674,0.575668,3092.2,3091.1,0.55]
[1720513986837,0.575668,3092.2,3090.7,3.23548]
[1720513987040,3.575668,3092.2,3090.8,0.55]
[1720513987240,0.2818248,3092.1,3090.8,0.55]
[1720513987638,0.2818248,3092.1,3090.8,3.2354]
[1720513988067,0.2818248,3092.1,3090.7,3.78545]
[1720513988437,0.2818248,3092.1,3090.8,3.23538]
[1720513988795,0.58044928,3092.0,3090.8,3.23538]
[1720513989078,5.522668,3092.2,3091.2,3.23497]
[1720513989079,3.0,3092.2,3091.2,3.23497]
[1720513989278,3.0,3092.2,3091.2,3.29965103]
[1720513989477,3.0,3092.3,3091.0,3.29978105]
[1720513989681,3.0,3092.3,3091.1,0.55]
[1720513989682,3.98211,3092.3,3091.1,0.55]
[1720513990477,3.98211,3092.3,3090.8,3.23537]
[1720513990647,1.380321,3092.2,3090.7,3.23551]
[1720513990845,1.380321,3092.2,3090.8,3.78539]
[1720513991781,1.380321,3092.2,3090.2,3.0]
[1720513991782,6.744321,3092.2,3090.2,3.0]
[1720513991985,6.744321,3092.2,3090.5,3.23571]
[1720513991986,0.9744321,3092.1,3090.5,3.23571]
[1720513992143,2.4611,3092.4,3090.6,0.06469452]
[1720513992349,2.4693,3093.0,3091.7,3.23439]
[1720513992546,2.4693,3093.0,3091.8,0.06466941]
[1720513992760,2.4693,3093.0,3091.9,3.23424]
[1720513992988,0.33866325,3092.9,3092.0,0.06466756]
[1720513993731,2.4693,3093.0,3092.0,0.06466756]
[1720513993848,2.4693,3093.0,3091.2,8.62933]
[1720513993849,3.69779633,3092.9,3091.2,5.3944]
[1720513994049,3.69779633,3092.9,3091.2,3.0]
[1720513994392,8.364,3092.8,3090.9,3.23525]
[1720513994593,5.364,3092.5,3091.0,0.06468585]
[1720513994747,5.7051,3092.7,3091.0,0.06468585]
[1720513994954,4.14635096,3092.6,3091.1,3.23502]
[1720513995181,4.14635096,3092.6,3091.2,0.06468333]
[1720513995493,4.14635096,3092.6,3091.2,3.29966333]
[1720513995693,4.14635096,3092.6,3091.3,0.06468293]
[1720513995994,0.6434451,3092.5,3091.3,0.06468293]
[1720513996488,0.28079633,3092.9,3091.3,0.06468293]
[1720513996489,2.7861,3093.2,3091.4,0.55]
[1720513996784,2.7861,3093.2,3091.9,3.23419]
[1720513996785,0.33868482,3092.4,3091.9,3.23419]
[1720513996948,2.4608,3093.2,3092.0,0.06466892]
[1720513997145,0.33865931,3093.1,3092.0,3.29880892]
[1720513997789,0.33865931,3093.1,3092.0,0.06466892]
[1720513997948,0.33865931,3093.1,3091.9,0.06467021]
[1720513998373,0.33865931,3093.1,3091.7,3.23442]
[1720513998689,0.33865931,3093.1,3091.8,3.06467021]
[1720513998892,0.33865931,3093.1,3092.4,3.23364]
[1720513999182,7.6853,3093.8,3092.5,3.78361]
[1720513999397,7.6853,3093.8,3092.5,3.78356]
[1720513999398,2.01753,3093.7,3092.5,3.78356]
[1720513999589,2.01753,3093.7,3092.7,3.23337]
[1720514000094,7.36,3093.8,3092.7,3.23337]
[1720514000385,7.36,3093.8,3092.9,3.23311]
[1720514000889,7.36,3093.8,3092.6,3.23346]
[1720514001087,10.1401,3094.1,3092.2,3.23387]
[1720514001388,10.1401,3094.1,3092.3,3.29848941]
[1720514001389,5.364,3093.9,3092.3,3.29848941]
[1720514001614,5.364,3093.9,3092.0,3.29874947]
[1720514001889,7.36,3094.1,3092.1,0.06466081]
[1720514002091,7.36,3094.1,3092.7,3.23336]
[1720514002267,0.3253,3094.1,3092.4,0.06464958]
[1720514002449,0.33858214,3094.0,3092.8,3.23331]
[1720514002873,0.33858214,3094.0,3092.9,3.2978496]
[1720514003072,2.4823,3094.2,3093.0,3.233]
[1720514003298,2.4823,3094.2,3093.1,3.29761202]
[1720514003495,0.24873,3094.1,3093.1,3.29761202]
[1720514003698,2.4823,3094.2,3093.1,3.29763202]
[1720514004662,2.4823,3094.2,3093.1,0.06464202]
[1720514004859,2.4823,3094.2,3093.1,3.29757202]
[1720514005164,2.4823,3094.2,3093.0,3.23309]
[1720514005165,3.83341676,3094.2,3093.0,3.23309]
[1720514005368,3.0,3094.1,3093.2,0.06464089]
[1720514005562,3.98384168,3094.1,3093.2,0.06464089]
[1720514006296,3.83341676,3094.2,3093.2,0.06464089]
[1720514006297,2.4823,3094.2,3093.2,0.06464089]
[1720514006606,0.005,3094.3,3093.2,3.29753089]
[1720514006886,0.005,3094.3,3093.2,3.29752991]
[1720514007397,0.005,3094.3,3093.0,6.53071993]
[1720514007594,1.48342006,3094.3,3093.1,0.55]
[1720514007757,1.48342006,3094.3,3093.2,0.06463994]
[1720514007949,1.48342006,3094.3,3093.1,0.55]
[1720514008403,1.48342006,3094.3,3093.2,0.06463996]
[1720514008404,0.005,3094.3,3093.2,0.06463996]
[1720514009254,0.005,3094.3,3093.2,0.06464]
[1720514009494,0.005,3094.3,3092.8,3.23326]
[1720514009658,0.3253,3094.2,3092.6,5.62859]
[1720514009860,0.3253,3094.2,3092.3,3.23375]
[1720514009861,3.14033,3094.1,3092.3,3.23375]
[1720514010198,0.3253,3093.6,3091.7,2.238]
[1720514010379,5.6893,3093.5,3091.6,0.06466329]
[1720514010564,2.3004,3093.2,3091.5,3.2993319]
[1720514010903,2.3004,3093.2,3091.7,3.23444]
[1720514011190,5.3004,3093.2,3091.8,0.06467191]
[1720514011490,5.3004,3093.2,3092.0,3.23414]
[1720514011798,5.3004,3093.2,3092.1,0.06466605]
[1720514011980,0.56257,3093.1,3092.1,0.06466605]
[1720514012302,3.56257,3093.1,3092.1,0.06466605]
[1720514015596,3.56257,3093.1,3091.5,3.2346]
[1720514015827,3.56257,3093.1,3091.6,0.55]
[1720514016120,0.586297,3093.0,3091.5,3.23466]
[1720514016321,0.586297,3093.0,3091.5,3.29933457]
[1720514016706,0.586297,3093.0,3091.5,3.23466]
[1720514016914,0.3586297,3092.9,3091.4,0.55]
[1720514017089,0.3586297,3092.9,3090.2,3.23594]
[1720514017090,5.8048,3092.7,3091.3,0.06467901]
[1720514017294,0.77518,3092.6,3091.3,0.06467901]
[1720514017507,3.77518,3092.6,3091.3,0.06467901]
[1720514018008,3.77518,3092.6,3091.1,3.23508]
[1720514018417,3.77518,3092.6,3091.2,0.06468407]
[1720514018825,3.77518,3092.6,3091.0,3.23512]
[1720514019128,0.957998,3092.5,3091.2,0.06468408]
[1720514019306,5.364,3092.3,3090.5,5.65553]
[1720514019508,5.364,3092.3,3090.5,3.23563]
[1720514019717,6.417,3092.2,3090.3,0.06469479]
[1720514019890,6.417,3092.2,3090.4,3.23576]
[1720514020221,0.8364,3092.1,3090.5,3.2357]
[1720514020426,7.8257,3092.0,3090.0,2.4151]
[1720514020586,3.417,3091.7,3090.1,0.06470574]
[1720514021135,3.0,3091.6,3090.1,0.06470574]
[1720514021286,3.0,3091.6,3089.6,2.238]
[1720514021287,5.8787,3091.5,3089.6,2.238]
[1720514021482,7.8257,3091.5,3089.6,0.06470938]
[1720514021691,7.8257,3091.5,3089.5,3.30140135]
[1720514021692,7.19957,3091.4,3089.5,3.30140135]
[1720514022102,7.19957,3091.4,3089.3,3.23696]
[1720514022103,5.364,3091.3,3089.3,3.30167211]
[1720514022304,3.78257,3091.4,3089.3,6.47378]
[1720514022305,5.8787,3091.1,3089.3,6.47378]
[1720514022729,3.0,3091.0,3089.3,3.30162822]
[1720514022892,0.88787,3090.9,3089.3,3.23691]
[1720514023628,0.88787,3090.9,3089.3,6.47381]
[1720514023846,0.88787,3090.9,3089.4,3.30155821]
[1720514024753,0.88787,3090.9,3089.4,3.23684]
[1720514024957,0.88787,3090.9,3089.3,3.2369]
[1720514024958,0.388787,3090.8,3089.3,3.2369]
[1720514025255,0.388787,3090.8,3089.4,0.55]
[1720514025421,0.388787,3090.8,3089.2,0.55]
[1720514025630,0.388787,3090.8,3089.2,3.78707]
[1720514025825,0.388787,3090.8,3089.2,0.55]
[1720514026648,0.388787,3090.8,3088.8,3.0]
[1720514026649,3.417,3090.4,3088.5,5.55285]
[1720514026956,3.417,3090.4,3088.6,0.06473197]
[1720514026957,0.77022,3090.3,3088.6,0.06473197]
[1720514027271,0.77022,3090.3,3088.4,3.23789]
[1720514027272,3.7423,3090.2,3088.4,3.23789]
[1720514027575,0.945952,3090.1,3088.5,3.23781]
[1720514027762,3.945952,3090.1,3088.5,0.06473706]
[1720514027908,2.4455,3090.0,3088.3,3.3027071]
[1720514028110,7.8095,3090.0,3088.3,0.0647371]
[1720514028346,3.6391452,3089.9,3088.3,0.0647371]
[1720514028531,3.6391452,3089.9,3088.3,3.0647371]
[1720514028992,3.6391452,3089.9,3088.4,3.23789]
[1720514029271,3.6391452,3089.9,3088.3,3.0647371]
[1720514029272,3.0,3089.9,3088.7,3.2376]
[1720514029473,3.0,3089.9,3088.8,0.06473203]
[1720514029674,2.4455,3090.0,3088.3,0.06473664]
[1720514029876,0.54455,3089.9,3088.3,0.06473664]
[1720514030200,6.96155,3089.9,3088.0,5.57808]
[1720514030403,6.96155,3089.9,3088.0,3.30302405]
[1720514030404,3.417,3089.9,3088.0,3.30302405]
[1720514030555,3.0,3089.8,3088.0,3.30302405]
[1720514030892,3.0,3089.8,3088.0,3.30307405]
[1720514031098,0.6417,3089.7,3088.0,3.30307405]
[1720514031387,0.6417,3089.7,3088.0,0.06474405]
[1720514032191,0.6417,3089.7,3088.1,0.55]
[1720514032387,0.6417,3089.7,3088.2,0.06474638]
[1720514032587,2.4942,3089.6,3088.2,0.06474638]
[1720514032794,0.31359,3089.5,3088.2,0.06474638]
[1720514033389,3.31359,3089.5,3088.2,0.06474638]
[1720514033589,2.4942,3089.6,3088.3,0.06474641]
[1720514033793,2.4942,3090.1,3088.8,3.23749]
[1720514034003,2.4942,3090.1,3088.9,0.06472774]
[1720514034004,2.83313971,3090.1,3088.9,0.06472774]
[1720514034154,0.28195,3090.0,3088.7,0.06473626]
[1720514034353,0.31150897,3089.9,3088.7,0.06473626]
[1720514034993,0.31150897,3089.9,3088.4,3.23791]
[1720514035178,0.31150897,3089.9,3088.5,0.06473891]
[1720514035598,2.83313971,3090.1,3088.8,3.23747]
[1720514035900,2.83313971,3090.1,3088.9,0.06473047]
[1720514037590,0.49245528,3090.9,3089.2,3.23702]
[1720514037591,2.2594,3090.6,3089.2,3.23702]
[1720514037792,2.2594,3090.6,3089.3,0.06472076]
[1720514037979,0.3253,3090.5,3088.7,3.23751]
[1720514038295,0.25847,3090.4,3088.8,3.78749]
[1720514038936,3.25847,3090.4,3088.8,3.78749]
[1720514039095,3.25847,3090.4,3088.9,0.06473063]
[1720514039421,3.0,3090.4,3089.1,3.23712]
[1720514039592,3.0,3090.5,3089.1,3.23712]
[1720514039796,3.3253,3090.5,3089.0,0.55]
[1720514040017,3.3253,3090.5,3088.3,5.60059]
[1720514040018,0.55847,3090.4,3088.3,2.3626]
[1720514040226,0.55847,3090.4,3088.8,3.23744]
[1720514040393,0.55847,3090.4,3088.9,3.30212062]
[1720514040719,0.55847,3090.4,3088.2,3.23804]
[1720514040720,7.7703,3090.2,3088.2,3.23804]
[1720514040922,7.7703,3090.2,3088.1,5.47613]
[1720514040923,2.7316,3090.2,3088.3,3.30270889]
[1720514041129,2.7316,3090.2,3089.1,3.23711]
[1720514041427,2.4063,3090.2,3089.3,3.23696]
[1720514041721,2.4063,3090.2,3089.2,0.06472397]
[1720514041722,2.79631203,3090.8,3089.7,3.23649]
[1720514041886,2.79631203,3090.8,3089.8,0.06471353]
[1720514042084,2.4574,3090.8,3089.8,0.06471353]
[1720514042504,2.4574,3090.8,3089.3,3.30161355]
[1720514042720,0.3253,3090.7,3088.7,12.0]
[1720514042906,2.2936,3090.5,3088.8,3.78749]
[1720514043110,5.7106,3090.5,3088.8,0.55]
[1720514043282,5.7106,3090.5,3088.8,3.23742]
[1720514043283,0.793587,3090.4,3088.8,3.23742]
[1720514043478,0.793587,3090.4,3089.0,3.23719]
[1720514043721,0.793587,3090.4,3088.9,3.23733]
[1720514043722,3.0,3090.4,3088.9,3.23733]
[1720514043883,5.2936,3090.5,3089.0,0.55]
[1720514044394,5.2936,3090.5,3089.2,3.23708]
[1720514044593,5.2936,3090.5,3089.3,0.06472409]
[1720514044798,2.2936,3090.5,3089.3,0.06472409]
[1720514044994,2.2936,3090.5,3089.5,3.23668]
[1720514045316,2.2936,3090.5,3089.6,0.06471552]
[1720514046299,2.4442,3091.0,3089.6,0.06471552]
[1720514046500,3.7166,3091.0,3089.6,0.06471552]
[1720514046726,3.0,3090.9,3089.6,0.06471552]
[1720514046909,4.947,3090.9,3089.3,0.06472391]
[1720514047113,0.3253,3090.7,3088.8,3.2375]
[1720514047285,5.6893,3090.7,3088.8,3.30222879]
[1720514047490,3.529946,3090.6,3089.0,6.47448]
[1720514047693,2.4283,3091.5,3089.7,2.238]
[1720514048030,2.4283,3091.5,3089.0,1.5]
[1720514048031,2.4283,3091.5,3090.2,2.238]
[1720514048232,2.4283,3091.5,3090.3,0.0647007]
[1720514048530,2.4725,3092.0,3090.7,3.23544]
[1720514048704,3.31848962,3092.0,3090.9,3.23528]
[1720514048907,2.4725,3092.0,3091.0,0.0646894]
[1720514049406,2.4725,3092.0,3090.8,3.23539]
[1720514049794,2.4725,3092.0,3090.3,3.23588]
[1720514049995,0.24725,3091.9,3090.4,3.78582]
[1720514050298,0.24725,3091.9,3089.8,2.238]
[1720514050498,0.24725,3091.9,3090.0,3.78616]
[1720514050729,6.66425,3091.9,3090.0,3.78616]
[1720514050927,6.66425,3091.9,3090.2,3.236]
[1720514051115,1.108375,3091.8,3090.2,6.47194]
[1720514051438,1.108375,3091.8,3090.6,3.23558]
[1720514051634,2.4725,3092.0,3090.9,3.23529]
[1720514051795,2.4725,3092.0,3091.0,3.29981829]
[1720514051995,2.4725,3092.0,3091.2,3.23497]
[1720514052335,2.4725,3092.0,3091.3,0.0646853]
[1720514052696,2.4725,3092.0,3090.8,3.23537]
[1720514052895,0.24725,3091.9,3090.8,3.23537]
[1720514053098,2.4725,3092.0,3090.8,3.23531]
[1720514053298,2.4725,3092.0,3090.7,3.2355]
[1720514053610,2.4725,3092.0,3090.8,3.30008349]
[1720514054025,2.4725,3092.0,3091.0,3.23518]
[1720514054230,2.4725,3092.0,3091.1,0.06468907]
[1720514054765,2.2991,3092.4,3091.2,3.23496]
[1720514054933,3.54186553,3092.4,3091.3,0.06468533]
[1720514055275,2.2991,3092.4,3091.3,0.06468533]
[1720514055560,2.2991,3092.4,3091.5,3.23461]
[1720514055726,2.2991,3092.4,3091.6,0.06467787]
[1720514057224,2.2991,3092.4,3091.4,3.84943792]
[1720514057428,2.2991,3092.4,3090.8,4.5002]
[1720514057697,2.52901,3092.4,3091.1,3.23509]
[1720514057825,2.52901,3092.4,3090.9,3.0]
[1720514057826,2.52901,3092.4,3090.9,3.2352]
[1720514058034,2.52901,3092.4,3091.0,3.78514]
[1720514058256,2.2991,3092.4,3091.3,3.23479]
[1720514058460,2.2991,3092.4,3091.4,0.06467881]
[1720514058657,2.2991,3092.4,3091.3,3.23488]
[1720514058859,4.0,3092.0,3091.3,3.23488]
[1720514059075,4.0,3092.0,3091.0,0.55]
[1720514059775,4.4,3092.0,3090.7,3.23547]
[1720514060147,4.4,3092.0,3090.9,3.23524]
[1720514060385,4.0,3092.0,3090.9,3.23521]
[1720514060560,4.0,3092.0,3091.0,3.23519]
[1720514060894,4.0,3092.0,3091.4,3.23471]
[1720514061194,4.0,3092.0,3091.5,0.06468102]
[1720514061548,4.0,3092.0,3091.9,6.4685]
[1720514061781,2.12363013,3092.0,3091.9,10.08317086]
[1720514061984,2.12363013,3092.0,3091.9,13.25275]
[1720514062193,0.32277858,3092.0,3091.9,13.25275]
[1720514062378,0.32277858,3092.0,3091.9,16.487]
[1720514063753,0.32277858,3092.0,3091.9,13.25275]
[1720514064098,8.58e-06,3092.0,3091.9,22.21935]
[1720514064385,7.36,3094.1,3092.8,3.23325]
[1720514064683,2.4546,3094.3,3092.7,3.2334]
[1720514064684,0.736,3094.0,3092.7,3.2334]
[1720514064882,2.4546,3094.3,3092.2,0.06465147]
[1720514064883,2.2763,3094.2,3092.2,0.06465147]
[1720514065048,2.2763,3094.0,3092.3,3.78374]
[1720514065249,0.56933,3093.9,3092.3,0.55]
[1720514065462,0.56933,3093.9,3092.2,0.55]
[1720514065463,3.56933,3093.9,3092.2,0.55]
[1720514065659,3.56933,3093.9,3092.6,3.23344]
[1720514065947,0.584563,3093.8,3092.7,3.78332]
[1720514066146,0.005,3094.3,3093.3,3.23278]
[1720514066347,0.005,3094.3,3093.4,0.06463873]
[1720514066566,0.005,3094.3,3093.5,0.55]
[1720514067367,0.005,3094.3,3093.7,3.23229]
[1720514067564,0.005,3094.3,3093.8,3.78223]
[1720514067803,0.005,3094.3,3093.5,3.23254]
[1720514068121,0.005,3094.3,3093.6,0.55]
[1720514068412,0.005,3094.3,3093.9,3.23215]
[1720514068574,0.005,3094.3,3094.0,0.6146241]
[1720514069611,0.005,3094.3,3094.0,0.55]
[1720514069774,0.005,3094.3,3093.8,0.55]
[1720514069974,0.005,3094.3,3093.9,0.06462414]
[1720514070195,0.005,3094.3,3094.0,0.55]
[1720514071086,0.005,3094.3,3094.1,0.06462369]
[1720514071872,0.005,3094.3,3094.2,5.61657121]
[1720514072109,0.005,3094.3,3094.2,17.86827121]
[1720514072408,0.005,3094.3,3094.2,17.80365]
[1720514073311,0.005,3094.3,3094.2,14.5718]
[1720514073820,0.005,3094.3,3094.2,3.78185]
[1720514074309,0.005,3094.3,3094.2,0.55]
[1720514074510,0.005,3094.3,3094.0,2.238]
[1720514074714,0.005,3094.3,3094.1,0.06462052]
[1720514074879,0.005,3094.3,3094.1,3.29655052]
[1720514075278,0.005,3094.3,3094.2,6.52832052]
[1720514075487,0.005,3094.3,3094.2,12.76017052]
[1720514075889,0.005,3094.6,3094.5,6.46306]
[1720514076090,0.005,3094.6,3094.5,10.07766418]
[1720514077336,0.005,3094.8,3094.7,3.23133]
[1720514077500,0.005,3094.8,3094.7,3.84593421]
[1720514077702,0.005,3094.8,3094.7,7.07726421]
[1720514078529,0.005,3094.8,3094.7,3.78133]
[1720514079099,0.005,3094.8,3094.7,7.01266]
[1720514080265,0.005,3094.8,3093.9,3.23212]
[1720514080416,0.005,3094.8,3094.0,2.30261895]
[1720514080806,0.005,3094.8,3094.4,3.23163]
[1720514081028,0.005,3094.8,3094.5,0.06461491]
[1720514081226,0.005,3094.8,3094.0,2.238]
[1720514081433,0.005,3094.8,3094.0,2.30261896]
[1720514081856,2.301,3095.2,3094.2,3.23185]
[1720514082018,2.301,3095.2,3094.3,0.06461616]
[1720514082223,2.301,3095.2,3094.3,3.29635616]
[1720514082739,2.301,3095.2,3094.3,0.06461616]
[1720514082962,2.5311,3095.2,3094.0,2.238]
[1720514083143,2.5311,3095.2,3094.1,0.55]
[1720514083462,2.5311,3095.2,3093.8,3.23226]
[1720514083759,2.5311,3095.2,3093.8,6.46438]
[1720514083960,0.25311,3095.1,3093.8,3.23218]
[1720514084174,0.25311,3095.1,3093.8,6.46437]
[1720514084379,0.25311,3095.1,3093.8,3.23218]
[1720514085183,0.25311,3095.1,3093.9,0.55]
[1720514085466,0.255411,3095.0,3093.9,0.55]
[1720514090060,0.255411,3095.0,3094.0,0.06462308]
[1720514090671,0.0059957,3095.8,3094.0,7.80311]
[1720514090873,0.0059957,3095.8,3094.1,3.61462375]
[1720514091072,0.0059957,3095.8,3094.5,3.23146]
[1720514091424,0.0059957,3095.8,3094.6,3.78142]
[1720514091623,0.98625527,3095.8,3094.7,3.23132]
[1720514091930,0.98625527,3095.8,3094.8,0.55]
[1720514092416,0.98625527,3095.8,3094.6,0.55]
[1720514092626,0.98625527,3095.8,3094.4,0.55]
[1720514092823,0.98625527,3095.8,3094.4,3.78162]
[1720514093122,0.39862553,3095.7,3094.4,0.55]
[1720514093482,0.39862553,3095.7,3094.3,3.78174]
[1720514093817,0.39862553,3095.7,3094.3,3.84635258]
[1720514095096,0.39862553,3095.7,3094.3,0.55]
[1720514095350,0.39862553,3095.7,3094.2,0.55]
[1720514095351,2.4757,3095.6,3094.2,0.55]
[1720514095632,0.28743255,3095.5,3094.2,0.55]
[1720514095837,3.28743255,3095.5,3094.1,0.55]
[1720514096394,3.28743255,3095.5,3093.9,3.55]
[1720514096598,0.57631325,3095.4,3093.9,0.55]
[1720514097031,0.57631325,3095.4,3093.9,0.61462124]
[1720514097339,0.57631325,3095.4,3093.9,0.55]
[1720514099363,2.4959,3095.3,3093.9,0.55]
[1720514099517,5.4959,3095.3,3093.8,6.78226]
[1720514099864,2.4959,3095.3,3093.8,6.78226]
[1720514100148,2.4959,3095.3,3093.8,3.78226]
[1720514100715,2.4959,3095.3,3093.8,0.55]
[1720514100919,0.54959,3095.2,3093.8,0.55]
[1720514101128,3.54959,3095.2,3093.8,0.55]
[1720514101351,3.0,3095.2,3093.8,0.55]
[1720514101556,2.4959,3095.3,3093.8,0.55]
[1720514101557,2.4959,3095.3,3093.8,3.78223]
[1720514101760,2.297,3095.2,3093.5,2.238]
[1720514101928,2.297,3095.2,3093.0,7.91608]
[1720514101929,1.947,3094.9,3093.0,7.91608]
[1720514102129,3.0,3094.9,3093.3,3.2327]
[1720514102441,3.0,3094.9,3093.1,0.06463286]
[1720514102649,0.5297,3094.8,3093.4,1.678]
[1720514102820,2.2511,3094.8,3093.4,1.678]
[1720514103158,5.2511,3094.8,3093.4,1.678]
[1720514103329,2.2511,3094.8,3093.8,1.678]
[1720514103517,2.2511,3094.8,3093.4,2.53333791]
[1720514103518,2.4784,3095.4,3094.2,1.678]
[1720514103715,2.4784,3095.4,3094.6,1.678]
[1720514103954,2.4784,3095.4,3094.7,0.06461524]
[1720514104571,2.4784,3095.4,3094.1,3.23188]
[1720514104572,2.4784,3095.4,3094.4,0.06461533]
[1720514104800,2.4784,3095.4,3094.5,0.55]
[1720514105004,2.4784,3095.4,3094.2,0.55]
[1720514105290,2.4784,3095.4,3094.3,0.06461645]
[1720514106202,2.4784,3095.4,3094.3,3.29633645]
[1720514106406,2.4784,3095.4,3094.5,3.23147]
[1720514106571,3.0059957,3095.8,3094.6,0.06461083]
[1720514106767,3.0059957,3095.8,3094.7,0.55]